bitfinex/quotes_BTCUSD_20250131
["timestamp","ask_amount","ask_price","bid_price","bid_amount"]
[1738325933884,0.0001617,104800.0,104790.0,0.01757241]
[1738325934093,0.00025325,104800.0,104790.0,0.26323412]
[1738325934300,0.00025325,104800.0,104790.0,0.26228011]
[1738325934750,0.00025325,104800.0,104790.0,0.13992626]
[1738325934981,0.00025325,104800.0,104790.0,0.14088027]
[1738325935922,0.00025325,104800.0,104790.0,1.00928027]
[1738325936147,0.00025325,104800.0,104790.0,1.00832626]
[1738325936368,0.00225325,104800.0,104790.0,1.00832626]
[1738325936602,0.00325325,104800.0,104790.0,1.00832626]
[1738325937601,0.00325325,104800.0,104790.0,0.99075385]
[1738325937806,0.00325325,104800.0,104790.0,1.00832626]
[1738325939162,0.01325325,104800.0,104790.0,1.00832626]
[1738325942367,0.00325325,104800.0,104790.0,1.00832626]
[1738325942998,0.00325325,104800.0,104790.0,1.13068011]
[1738325943258,0.00325325,104800.0,104790.0,1.28068011]
[1738325944505,0.07709705,104820.0,104790.0,1.28068011]
[1738325944708,0.10009705,104820.0,104810.0,0.15]
[1738325944910,0.19734021,104820.0,104810.0,0.15]
[1738325946947,0.20534021,104820.0,104790.0,0.99175385]
[1738325947218,0.12024316,104810.0,104790.0,0.8694]
[1738325947421,0.12120175,104810.0,104790.0,0.8684]
[1738325947631,0.1007,104800.0,104790.0,1.0184]
[1738325947831,0.19794316,104800.0,104790.0,0.479]
[1738325948037,0.19794316,104800.0,104780.0,0.33888879]
[1738325948285,0.09724316,104790.0,104780.0,0.33898034]
[1738325948492,0.09724316,104790.0,104780.0,0.00034733]
[1738325948493,0.19794316,104790.0,104780.0,0.00034733]
[1738325948699,0.19794316,104790.0,104780.0,0.15034733]
[1738325949110,0.19794316,104790.0,104780.0,0.00034733]
[1738325949970,0.19794316,104790.0,104780.0,0.15034733]
[1738325950610,0.19794316,104790.0,104780.0,0.27270118]
[1738325951893,0.09724316,104790.0,104780.0,0.27470118]
[1738325952105,0.09724316,104790.0,104780.0,0.34067359]
[1738325952319,0.0775,104810.0,104780.0,1.20907359]
[1738325952537,0.1005,104810.0,104800.0,0.12235385]
[1738325952731,0.19774316,104810.0,104800.0,0.12235385]
[1738325954011,0.19774316,104810.0,104790.0,0.12330793]
[1738325954277,0.19774316,104810.0,104790.0,0.45230793]
[1738325954729,0.19774316,104810.0,104800.0,0.12235385]
[1738325954960,0.19774316,104810.0,104790.0,0.45135385]
[1738325955494,0.09724316,104800.0,104790.0,0.60135385]
[1738325957048,0.09824316,104800.0,104790.0,0.60135385]
[1738325959241,0.001,104800.0,104790.0,0.7237077]
[1738325959642,0.001,104800.0,104790.0,0.60135385]
[1738325960915,0.001,104800.0,104790.0,0.6107564]
[1738325963733,0.001,104800.0,104790.0,0.61101218]
[1738325971569,0.001,104800.0,104790.0,0.83203844]
[1738325971842,0.001,104800.0,104790.0,1.37143844]
[1738325971978,0.001,104800.0,104790.0,1.41663844]
[1738325973312,0.001,104800.0,104790.0,1.41863844]
[1738325973509,0.0001218,104820.0,104800.0,0.15]
[1738325973673,0.09736496,104820.0,104810.0,0.12235385]
[1738325977320,0.09836496,104820.0,104810.0,0.12235385]
[1738325977520,0.09836496,104820.0,104810.0,0.45135385]
[1738325978890,0.09836496,104820.0,104810.0,0.46076903]
[1738325981099,0.12136496,104820.0,104810.0,0.46076903]
[1738325982616,0.09836496,104820.0,104810.0,0.65846903]
[1738325986594,0.09836496,104820.0,104810.0,0.74096903]
[1738325987431,0.0011218,104820.0,104810.0,0.74096903]
[1738325989022,0.0011218,104820.0,104810.0,0.75854144]
[1738325989466,0.0011218,104820.0,104810.0,1.29794144]
[1738325990523,0.0011218,104820.0,104810.0,1.29894144]
[1738325990946,0.0001218,104820.0,104810.0,1.29894144]
[1738325991748,0.0001218,104820.0,104810.0,1.29994144]
[1738325992687,0.0001218,104820.0,104810.0,1.25786385]
[1738325993650,0.0001218,104820.0,104810.0,1.33814011]
[1738325994494,0.0001218,104820.0,104810.0,1.25786385]
[1738325994699,0.0001218,104820.0,104810.0,1.29990606]
[1738325998710,0.0001218,104820.0,104810.0,1.30016184]
[1738325999802,0.0001218,104820.0,104810.0,1.21766184]
[1738326000770,0.0001218,104820.0,104810.0,1.20008943]
[1738326001150,0.20236496,104820.0,104810.0,1.15238943]
[1738326001370,0.20236496,104820.0,104810.0,0.61298943]
[1738326002083,0.20236496,104820.0,104810.0,0.63056184]
[1738326002488,0.12036496,104820.0,104810.0,0.63056184]
[1738326002904,0.12036496,104820.0,104810.0,0.61298943]
[1738326003939,0.12036496,104820.0,104810.0,0.63056184]
[1738326004157,0.12036496,104820.0,104810.0,0.61298943]
[1738326004984,0.12036496,104820.0,104810.0,0.63056184]
[1738326005185,0.12036496,104820.0,104810.0,0.61298943]
[1738326007424,0.12036496,104820.0,104810.0,0.34067096]
[1738326007806,0.20126496,104820.0,104810.0,0.34067096]
[1738326008272,0.20126496,104820.0,104810.0,0.33867096]
[1738326008505,0.20226496,104820.0,104810.0,0.33867096]
[1738326009612,0.16119188,104820.0,104810.0,0.46098943]
[1738326009822,0.08029188,104820.0,104810.0,0.46098943]
[1738326012790,0.08041368,104820.0,104810.0,0.46098943]
[1738326013449,0.08041368,104820.0,104810.0,0.33867096]
[1738326014665,0.16291368,104820.0,104810.0,0.32925578]
[1738326016387,0.18591368,104820.0,104810.0,0.32925578]
[1738326017222,0.08041368,104820.0,104810.0,0.40956436]
[1738326017428,0.08041368,104820.0,104810.0,0.45586436]
[1738326019004,0.08041368,104820.0,104810.0,0.49788682]
[1738326020812,0.08041368,104820.0,104810.0,0.32925578]
[1738326021027,0.08041368,104820.0,104810.0,0.45158682]
[1738326025432,0.08041368,104820.0,104810.0,0.32925578]
[1738326025858,0.10341368,104820.0,104810.0,0.32925578]
[1738326027653,0.08041368,104820.0,104810.0,0.32925578]
[1738326028899,0.08041368,104820.0,104810.0,0.45158682]
[1738326030951,0.08041368,104820.0,104810.0,0.32925578]
[1738326031355,0.08041368,104820.0,104810.0,0.45158682]
[1738326031768,0.08041368,104820.0,104810.0,0.45499509]
[1738326033384,0.08041368,104820.0,104810.0,0.33266405]
[1738326037479,0.15931368,104820.0,104810.0,0.33266405]
[1738326039104,0.18231368,104820.0,104810.0,0.00366405]
[1738326041819,0.10341368,104820.0,104810.0,0.12599509]
[1738326042549,0.08041368,104820.0,104810.0,0.12599509]
[1738326043551,0.08041368,104820.0,104810.0,0.12694913]
[1738326044193,0.08041368,104820.0,104810.0,0.12599509]
[1738326045712,0.08081368,104820.0,104810.0,0.35794906]
[1738326045914,0.08081368,104820.0,104810.0,0.40639509]
[1738326048776,0.08081368,104820.0,104810.0,0.73539509]
[1738326050059,0.07981368,104820.0,104810.0,0.73539509]
[1738326051125,0.07981368,104820.0,104810.0,0.73639509]
[1738326051664,0.07981368,104820.0,104810.0,0.73739509]
[1738326053243,0.09724316,104820.0,104810.0,0.74739509]
[1738326056608,0.09724316,104820.0,104810.0,0.70535373]
[1738326057017,0.08415859,104850.0,104820.0,0.16]
[1738326057221,0.09724316,104840.0,104830.0,0.00327714]
[1738326057459,0.79724316,104840.0,104830.0,0.00327714]
[1738326058402,0.95741227,104840.0,104830.0,0.00327714]
[1738326058945,0.87712259,104840.0,104830.0,0.00327714]
[1738326059959,0.89850435,104840.0,104830.0,0.00327714]
[1738326062236,0.81910435,104840.0,104830.0,0.00327714]
[1738326062445,0.11910435,104840.0,104830.0,0.00327714]
[1738326063476,0.11922625,104840.0,104830.0,0.00327714]
[1738326065155,0.81922625,104840.0,104830.0,0.00327714]
[1738326066594,0.11922625,104840.0,104830.0,0.00327714]
[1738326068197,0.81922625,104840.0,104830.0,0.00327714]
[1738326069779,0.11922625,104840.0,104830.0,0.00327714]
[1738326070700,0.11922625,104840.0,104830.0,0.20383103]
[1738326070918,0.11922625,104840.0,104830.0,0.20287714]
[1738326071767,0.11922625,104840.0,104830.0,0.27877714]
[1738326072209,0.11922625,104840.0,104830.0,0.35906682]
[1738326072643,0.11922625,104840.0,104830.0,0.68806682]
[1738326073252,0.11922625,104840.0,104830.0,0.60777714]
[1738326075839,0.11922625,104840.0,104830.0,0.60803292]
[1738326079327,0.09984449,104840.0,104830.0,0.6883226]
[1738326079762,0.09979449,104840.0,104830.0,0.6883226]
[1738326080196,0.00260133,104840.0,104830.0,0.7183226]
[1738326084328,0.00060133,104840.0,104830.0,0.7183226]
[1738326084558,0.00060133,104840.0,104830.0,1.2577226]
[1738326085939,0.00160133,104840.0,104830.0,1.2577226]
[1738326086318,0.00060133,104840.0,104830.0,1.2577226]
[1738326086725,0.00160133,104840.0,104830.0,1.2577226]
[1738326096520,0.00160133,104840.0,104830.0,1.2377226]
[1738326096810,0.00160133,104840.0,104830.0,1.2577226]
[1738326098751,0.00160133,104840.0,104830.0,1.33801228]
[1738326098943,0.00160133,104840.0,104830.0,1.2577226]
[1738326100607,0.001442,104840.0,104830.0,1.2577226]
[1738326101512,0.001442,104840.0,104830.0,1.33801228]
[1738326101715,0.001442,104840.0,104830.0,1.2577226]
[1738326104500,0.001442,104840.0,104830.0,1.25779444]
[1738326107109,0.001442,104840.0,104830.0,1.33808412]
[1738326111101,0.01902313,104870.0,104860.0,0.2079]
[1738326111311,0.00026562,104870.0,104860.0,1.41276904]
[1738326111516,0.00026562,104870.0,104860.0,1.3325512]
[1738326111721,0.00026562,104870.0,104860.0,1.33569559]
[1738326112344,0.00026562,104870.0,104860.0,1.15980591]
[1738326112558,0.00026562,104870.0,104860.0,1.07951623]
[1738326112774,0.17620878,104870.0,104860.0,1.02161623]
[1738326112986,0.17620878,104870.0,104860.0,0.48321623]
[1738326113379,0.17620878,104870.0,104860.0,0.48421623]
[1738326113811,0.17620878,104870.0,104860.0,0.48221623]
[1738326114807,0.34174135,104870.0,104860.0,0.00321623]
[1738326115216,0.20820878,104870.0,104860.0,0.00421623]
[1738326115651,0.90820878,104870.0,104860.0,0.00421623]
[1738326116397,0.90820878,104870.0,104860.0,0.00521623]
[1738326117729,1.02148052,104870.0,104860.0,0.00421623]
[1738326118138,1.02248052,104870.0,104860.0,0.00421623]
[1738326118530,1.02148052,104870.0,104860.0,0.00421623]
[1738326118840,1.03048052,104870.0,104860.0,0.00521623]
[1738326119756,0.90820878,104870.0,104860.0,0.00521623]
[1738326120938,0.88520878,104870.0,104860.0,0.00521623]
[1738326121150,0.80650878,104870.0,104860.0,0.15521623]
[1738326121816,0.10650878,104870.0,104860.0,0.15521623]
[1738326123965,0.00926562,104870.0,104860.0,0.61648797]
[1738326124675,0.00917795,104870.0,104860.0,0.61648797]
[1738326124887,0.00917795,104870.0,104860.0,1.28438797]
[1738326125877,0.00917795,104870.0,104860.0,1.30438797]
[1738326126428,0.00917795,104870.0,104860.0,1.30338797]
[1738326126832,0.00017795,104870.0,104860.0,1.30238797]
[1738326126978,0.00317795,104870.0,104860.0,1.30238797]
[1738326127181,0.00217795,104870.0,104860.0,1.30238797]
[1738326127590,0.00017795,104870.0,104860.0,1.30238797]
[1738326127984,0.09742111,104870.0,104860.0,0.68338797]
[1738326128189,0.00017795,104870.0,104860.0,0.68338797]
[1738326128724,0.00117795,104870.0,104860.0,0.68338797]
[1738326132010,0.00117795,104870.0,104860.0,0.89378797]
[1738326133852,0.00117795,104870.0,104860.0,0.86378797]
[1738326134060,0.00117795,104870.0,104860.0,0.69261623]
[1738326134293,0.09842111,104870.0,104860.0,0.33221623]
[1738326135587,0.09842111,104870.0,104860.0,0.48221623]
[1738326136699,0.00117795,104870.0,104860.0,0.60448797]
[1738326136917,0.09842111,104870.0,104860.0,0.60448797]
[1738326138889,0.09842111,104870.0,104860.0,0.48221623]
[1738326141418,0.09842111,104870.0,104860.0,0.50221623]
[1738326141648,0.09842111,104870.0,104860.0,0.50316044]
[1738326143004,0.10838381,104870.0,104860.0,0.50316044]
[1738326144692,0.10838381,104870.0,104860.0,0.50341622]
[1738326150664,0.18668381,104870.0,104860.0,0.50341622]
[1738326150867,0.1876424,104870.0,104860.0,0.50341622]
[1738326151096,0.18668381,104870.0,104860.0,0.35341622]
[1738326151526,0.88668381,104870.0,104860.0,0.50341622]
[1738326152965,0.88868381,104870.0,104860.0,0.50341622]
[1738326153538,0.88668381,104870.0,104860.0,0.50341622]
[1738326154047,0.88568381,104870.0,104860.0,0.50341622]
[1738326154499,0.89768381,104870.0,104860.0,0.50441622]
[1738326154701,0.89468381,104870.0,104860.0,0.50441622]
[1738326154905,0.89768381,104870.0,104860.0,0.50541622]
[1738326155922,0.89768381,104870.0,104860.0,0.17641622]
[1738326162137,0.81938381,104870.0,104860.0,0.17641622]
[1738326163855,0.81938381,104870.0,104860.0,0.22341622]
[1738326165653,0.72214065,104870.0,104860.0,0.43508796]
[1738326166069,0.71217795,104870.0,104860.0,0.43508796]
[1738326166579,0.70317795,104870.0,104860.0,1.32248796]
[1738326166847,0.00017795,104870.0,104860.0,1.32148796]
[1738326167081,0.00417795,104870.0,104860.0,1.32148796]
[1738326167851,0.00417795,104870.0,104860.0,1.33275235]
[1738326169319,0.00217795,104870.0,104860.0,1.33275235]
[1738326169751,0.00317795,104870.0,104860.0,1.33275235]
[1738326172666,0.00117795,104870.0,104860.0,1.33275235]
[1738326173006,0.00217795,104870.0,104860.0,1.33275235]
[1738326176557,0.00217795,104870.0,104860.0,1.35575235]
[1738326177277,0.00112342,104870.0,104860.0,1.33275235]
[1738326181189,0.00124522,104870.0,104860.0,1.33275235]
[1738326183014,0.00124522,104870.0,104860.0,1.35575235]
[1738326183985,0.00124522,104870.0,104860.0,1.33275235]
[1738326184135,0.00124522,104870.0,104860.0,1.31275235]
[1738326184939,0.00124522,104870.0,104860.0,1.33275235]
[1738326187425,0.00124522,104870.0,104860.0,1.35575235]
[1738326188015,0.00124522,104870.0,104860.0,1.33275235]
[1738326188566,0.00124522,104870.0,104860.0,1.32275235]
[1738326188771,0.00124522,104870.0,104860.0,1.33275235]
[1738326193556,0.00124522,104870.0,104860.0,1.31275235]
[1738326193786,0.00124522,104870.0,104860.0,1.33275235]
[1738326195716,0.00124522,104870.0,104860.0,1.35575235]
[1738326198351,0.00024522,104870.0,104860.0,1.35575235]
[1738326199706,0.0001218,104870.0,104860.0,1.63250604]
[1738326200284,0.0001218,104870.0,104860.0,1.63350604]
[1738326201280,0.00057145,104900.0,104890.0,0.0771]
[1738326201533,0.7001218,104910.0,104900.0,0.3093]
[1738326201740,0.7002589,104910.0,104900.0,0.67408664]
[1738326201947,0.0011219,104930.0,104920.0,0.203]
[1738326202095,0.0011219,104930.0,104920.0,1.4150149]
[1738326202294,0.0011219,104930.0,104920.0,1.31784358]
[1738326202547,0.0011219,104930.0,104920.0,1.32145047]
[1738326202896,0.0011219,104930.0,104920.0,1.20265047]
[1738326203103,0.0011219,104930.0,104920.0,1.22265047]
[1738326203599,0.0011219,104930.0,104920.0,1.20265047]
[1738326203808,0.0011219,104930.0,104920.0,1.22265047]
[1738326204030,0.0011219,104930.0,104920.0,1.14435047]
[1738326204247,0.0011219,104930.0,104920.0,0.49267873]
[1738326204248,0.09836506,104930.0,104920.0,0.49267873]
[1738326204446,0.09836506,104930.0,104920.0,0.33267873]
[1738326204655,0.17666506,104930.0,104920.0,0.33267873]
[1738326205818,0.17666506,104930.0,104920.0,0.48267873]
[1738326207064,0.09936506,104930.0,104920.0,0.49267873]
[1738326207269,0.09936506,104930.0,104920.0,0.61495047]
[1738326208348,0.09936506,104930.0,104920.0,0.49267873]
[1738326209139,0.09936506,104930.0,104920.0,0.61495047]
[1738326209345,0.09936506,104930.0,104920.0,0.49267873]
[1738326209970,0.09936506,104930.0,104920.0,0.48267873]
[1738326210258,0.09936506,104930.0,104920.0,0.49267873]
[1738326211986,0.09936506,104930.0,104920.0,0.48267873]
[1738326218724,0.19316506,104930.0,104920.0,0.15367873]
[1738326219708,0.19216506,104930.0,104920.0,0.15367873]
[1738326219949,0.20116506,104930.0,104920.0,0.15467873]
[1738326220106,0.20116506,104930.0,104920.0,0.15567873]
[1738326222279,0.10736506,104930.0,104920.0,0.15567873]
[1738326227090,0.10736506,104930.0,104920.0,1.19335047]
[1738326227492,0.10736506,104930.0,104920.0,1.07107873]
[1738326229089,0.10736506,104930.0,104920.0,1.02407873]
[1738326236975,0.10832365,104930.0,104920.0,1.02407873]
[1738326237193,0.10832365,104930.0,104920.0,0.15567873]
[1738326237333,0.10736506,104930.0,104920.0,0.15567873]
[1738326237746,0.80736506,104930.0,104920.0,0.15567873]
[1738326239995,0.80736506,104930.0,104920.0,0.1469325]
[1738326240203,0.80736506,104930.0,104920.0,0.14976872]
[1738326241718,0.80736506,104930.0,104920.0,0.00483622]
[1738326241719,0.88936506,104930.0,104920.0,0.00483622]
[1738326244347,0.80736506,104930.0,104920.0,0.00483622]
[1738326250914,0.80736506,104930.0,104920.0,0.00509221]
[1738326251788,0.80736506,104930.0,104920.0,0.27909221]
[1738326255232,0.80736506,104930.0,104920.0,0.20249221]
[1738326256786,1.0055368,104930.0,104920.0,0.15509221]
[1738326256939,1.01051293,104930.0,104920.0,0.15509221]
[1738326258126,0.93461293,104930.0,104920.0,0.15509221]
[1738326259149,0.93461293,104930.0,104920.0,0.00509221]
[1738326259800,0.98671079,104930.0,104920.0,0.00509221]
[1738326259937,0.81234119,104930.0,104920.0,0.00509221]
[1738326261820,0.93461293,104930.0,104920.0,0.00509221]
[1738326261942,0.81234119,104930.0,104920.0,0.00509221]
[1738326262896,0.93461293,104930.0,104920.0,0.00509221]
[1738326267828,0.81234119,104930.0,104920.0,0.00509221]
[1738326270461,0.83534119,104930.0,104920.0,0.00509221]
[1738326270723,0.81234119,104930.0,104920.0,0.05429221]
[1738326271380,0.81234119,104930.0,104920.0,0.12999221]
[1738326271583,0.11234119,104930.0,104920.0,0.12999221]
[1738326272703,0.10736506,104930.0,104920.0,0.12999221]
[1738326273251,0.10736506,104930.0,104920.0,0.12715599]
[1738326274490,0.2296368,104930.0,104920.0,0.05145599]
[1738326274695,0.25761297,104930.0,104920.0,0.05145599]
[1738326274896,0.13534123,104930.0,104920.0,0.20145599]
[1738326276729,0.83534123,104930.0,104920.0,0.20145599]
[1738326277373,0.95761297,104930.0,104920.0,0.20145599]
[1738326284027,0.95761297,104930.0,104920.0,0.05145599]
[1738326286688,0.91550886,104930.0,104920.0,0.05145599]
[1738326288247,0.92647434,104930.0,104920.0,0.05145599]
[1738326291074,0.22647434,104930.0,104920.0,0.05145599]
[1738326294102,0.92647434,104930.0,104920.0,0.05145599]
[1738326300569,1.10399873,104930.0,104920.0,0.05145599]
[1738326300772,1.10399873,104930.0,104920.0,0.00091508]
[1738326300987,0.023,104920.0,104910.0,0.00025578]
[1738326301219,0.98153701,104920.0,104910.0,0.00025578]
[1738326301424,0.98057842,104920.0,104910.0,0.00025578]
[1738326301622,1.07793518,104920.0,104910.0,0.00025578]
[1738326301848,0.98057842,104920.0,104910.0,0.00025578]
[1738326302502,0.98257842,104920.0,104910.0,0.00025578]
[1738326303149,1.14034605,104920.0,104910.0,0.00025578]
[1738326303342,1.14934605,104920.0,104910.0,0.00125578]
[1738326303558,1.16604605,104920.0,104910.0,0.00125578]
[1738326303815,1.25440281,104920.0,104910.0,0.00025578]
[1738326304651,1.25740281,104920.0,104910.0,0.00025578]
[1738326305198,1.26640281,104920.0,104910.0,0.00025578]
[1738326305892,1.25440281,104920.0,104910.0,0.00025578]
[1738326306055,1.27240281,104920.0,104910.0,0.00125578]
[1738326306462,1.26340281,104920.0,104910.0,0.00025578]
[1738326306639,1.25840494,104920.0,104910.0,0.00025578]
[1738326306845,1.27722733,104920.0,104910.0,0.00025578]
[1738326307135,1.28622733,104920.0,104910.0,0.00025578]
[1738326307349,1.61642733,104920.0,104910.0,0.00125578]
[1738326307553,1.70217361,104920.0,104910.0,0.00125578]
[1738326308790,1.46586434,104920.0,104910.0,0.00125578]
[1738326308995,1.39286434,104920.0,104910.0,0.00125578]
[1738326310124,1.38626434,104920.0,104910.0,0.00125578]
[1738326310326,1.30711806,104920.0,104910.0,0.00125578]
[1738326311699,1.30051806,104920.0,104910.0,0.00125578]
[1738326311918,1.30711806,104920.0,104910.0,0.00125578]
[1738326312808,1.40447482,104920.0,104910.0,0.00125578]
[1738326313150,1.08327482,104920.0,104910.0,0.00125578]
[1738326319134,1.20552733,104920.0,104910.0,0.00125578]
[1738326319336,1.08327482,104920.0,104910.0,0.00125578]
[1738326319712,1.08339672,104920.0,104910.0,0.00125578]
[1738326320464,1.28624923,104920.0,104910.0,0.00125578]
[1738326321143,1.30294923,104920.0,104910.0,0.00125578]
[1738326324123,1.28624923,104920.0,104910.0,0.00125578]
[1738326325188,1.60744923,104920.0,104910.0,0.00125578]
[1738326328370,1.60744923,104920.0,104890.0,0.1302]
[1738326328576,0.24249567,104900.0,104890.0,0.1303371]
[1738326328759,0.9806984,104900.0,104890.0,0.1303371]
[1738326329163,0.98566601,104900.0,104890.0,0.1303371]
[1738326329799,0.28566601,104900.0,104890.0,0.1303371]
[1738326330003,0.29466601,104900.0,104890.0,0.1313371]
[1738326330828,0.27166601,104900.0,104890.0,0.1313371]
[1738326331668,0.27166601,104900.0,104890.0,0.1323371]
[1738326332080,0.27166601,104900.0,104890.0,0.1313371]
[1738326332506,0.28066601,104900.0,104890.0,0.1323371]
[1738326332912,1.00366601,104900.0,104890.0,0.0493371]
[1738326333722,1.00366601,104900.0,104890.0,0.04069874]
[1738326333930,1.00366601,104900.0,104890.0,0.01040386]
[1738326334177,1.00366601,104900.0,104890.0,0.0021371]
[1738326334814,1.08389363,104900.0,104890.0,0.0021371]
[1738326335932,1.1031863,104900.0,104890.0,0.0021371]
[1738326336136,1.20054306,104900.0,104890.0,0.0021371]
[1738326336346,1.52174306,104900.0,104890.0,0.0021371]
[1738326336767,1.53271869,104900.0,104890.0,0.0021371]
[1738326338543,0.26368286,104880.0,104870.0,0.09798746]
[1738326338744,0.9806984,104880.0,104870.0,0.02633378]
[1738326339035,1.05280675,104880.0,104860.0,0.02025578]
[1738326339182,0.25865699,104870.0,104860.0,0.02025578]
[1738326339398,0.2576984,104870.0,104860.0,0.02025578]
[1738326339772,0.9576984,104870.0,104860.0,0.02025578]
[1738326340634,0.94258261,104870.0,104860.0,0.02025578]
[1738326340812,1.03993937,104870.0,104860.0,0.02025578]
[1738326342669,1.04893937,104870.0,104860.0,0.02125578]
[1738326343469,1.04893937,104870.0,104860.0,0.02025578]
[1738326343879,1.03993937,104870.0,104860.0,0.02025578]
[1738326344300,1.05793937,104870.0,104860.0,0.02125578]
[1738326344712,0.97971028,104870.0,104860.0,0.02125578]
[1738326344926,0.97971028,104870.0,104850.0,0.09726554]
[1738326345131,0.21958261,104860.0,104850.0,0.09740936]
[1738326345339,0.91958261,104860.0,104850.0,0.09740936]
[1738326346402,1.06492206,104860.0,104850.0,0.04814382]
[1738326346611,1.16227882,104860.0,104850.0,0.04814382]
[1738326346855,1.03993937,104860.0,104850.0,0.04814382]
[1738326347079,1.04893937,104860.0,104850.0,0.04814382]
[1738326347219,0.96058261,104860.0,104850.0,0.04914382]
[1738326349317,1.08788515,104860.0,104850.0,0.04914382]
[1738326349715,1.09165325,104860.0,104850.0,0.04914382]
[1738326350341,0.9463138,104860.0,104850.0,0.04914382]
[1738326350557,0.9529138,104860.0,104850.0,0.04914382]
[1738326350743,0.9529138,104860.0,104850.0,0.12904382]
[1738326355678,0.9529138,104860.0,104850.0,0.12930002]
[1738326355878,0.9530358,104860.0,104850.0,0.12930002]
[1738326357745,1.17273201,104860.0,104850.0,0.12930002]
[1738326357955,1.07537525,104860.0,104850.0,0.12930002]
[1738326358590,0.9530358,104860.0,104850.0,0.12930002]
[1738326361252,0.2530358,104860.0,104850.0,0.12930002]
[1738326362001,0.2464358,104860.0,104850.0,0.12930002]
[1738326362657,0.28468279,104860.0,104850.0,0.12930002]
[1738326364239,0.98468279,104860.0,104850.0,0.12930002]
[1738326367625,1.16233277,104860.0,104850.0,0.12930002]
[1738326367820,1.16233277,104860.0,104850.0,0.04940002]
[1738326368350,1.08203955,104860.0,104850.0,0.04940002]
[1738326369495,1.10503955,104860.0,104850.0,0.04940002]
[1738326369694,1.18533277,104860.0,104850.0,0.00140002]
[1738326369913,1.18533277,104860.0,104840.0,0.04875599]
[1738326370118,0.25878819,104850.0,104840.0,0.04875599]
[1738326370364,0.43488636,104850.0,104830.0,0.15025578]
[1738326370541,0.25878819,104840.0,104830.0,0.15025578]
[1738326370740,0.2578296,104840.0,104830.0,0.15025578]
[1738326371234,0.2627886,104840.0,104830.0,0.15025578]
[1738326371640,0.34308182,104840.0,104830.0,0.15025578]
[1738326371841,0.2717886,104840.0,104830.0,0.15025578]
[1738326372158,0.9717886,104840.0,104830.0,0.15025578]
[1738326372703,0.93359774,104840.0,104830.0,0.15025578]
[1738326373290,0.95659774,104840.0,104830.0,0.15025578]
[1738326373507,0.93359774,104840.0,104830.0,0.15025578]
[1738326374916,0.94259774,104840.0,104830.0,0.15025578]
[1738326376289,0.96192867,104840.0,104830.0,0.15025578]
[1738326376630,0.98492867,104840.0,104830.0,0.15025578]
[1738326377064,0.99561658,104840.0,104830.0,0.15025578]
[1738326377289,0.97261658,104840.0,104830.0,0.15025578]
[1738326379892,0.850221,104840.0,104830.0,0.15025578]
[1738326380911,0.83953309,104840.0,104830.0,0.15025578]
[1738326382812,0.83953309,104840.0,104830.0,0.23075578]
[1738326384972,0.83953309,104840.0,104830.0,0.28025578]
[1738326386831,0.13953309,104840.0,104830.0,0.28025578]
[1738326387726,0.26192867,104840.0,104830.0,0.19975578]
[1738326388182,0.28917404,104840.0,104830.0,0.19975578]
[1738326388412,0.96192867,104840.0,104830.0,0.04975578]
[1738326389866,0.26192867,104840.0,104830.0,0.04975578]
[1738326390855,0.13953309,104840.0,104830.0,0.04975578]
[1738326391977,0.13953309,104840.0,104830.0,0.13035578]
[1738326393300,0.13965499,104840.0,104830.0,0.13035578]
[1738326398883,0.24300256,104840.0,104830.0,0.13035578]
[1738326399618,0.16270295,104840.0,104830.0,0.13035578]
[1738326399837,0.13965499,104840.0,104830.0,0.13035578]
[1738326405091,0.2199546,104840.0,104830.0,0.04975578]
[1738326405962,0.2199546,104840.0,104830.0,0.00025578]
[1738326411935,0.13965499,104840.0,104830.0,0.00025578]
[1738326416067,0.2199546,104840.0,104830.0,0.00025578]
[1738326416672,0.15969471,104840.0,104830.0,0.00025578]
[1738326417068,0.13965499,104840.0,104830.0,0.00025578]
[1738326417645,0.83965499,104840.0,104830.0,0.00025578]
[1738326423696,0.83965499,104840.0,104830.0,0.07735578]
[1738326424053,0.83965499,104840.0,104830.0,0.27635578]
[1738326424254,0.83965499,104840.0,104830.0,0.41872592]
[1738326424255,0.11536506,104840.0,104830.0,0.41872592]
[1738326424471,0.11536506,104840.0,104830.0,0.42872592]
[1738326424894,0.11536506,104840.0,104830.0,0.30635578]
[1738326425205,0.11536506,104840.0,104830.0,0.29635578]
[1738326425400,0.10636506,104840.0,104830.0,0.2942123]
[1738326425791,0.1115774,104840.0,104830.0,0.2171123]
[1738326426013,0.23494754,104840.0,104830.0,0.2171123]
[1738326426218,0.23794754,104840.0,104830.0,0.2171123]
[1738326426413,0.24290869,104840.0,104830.0,0.1681123]
[1738326426890,0.24290869,104840.0,104830.0,0.15025578]
[1738326427093,0.94290869,104840.0,104830.0,0.15025578]
[1738326427929,0.92869635,104840.0,104830.0,0.15025578]
[1738326429755,0.92869635,104840.0,104830.0,0.00025578]
[1738326430345,0.95169635,104840.0,104830.0,0.00025578]
[1738326430544,1.02909635,104840.0,104830.0,0.00025578]
[1738326435044,1.02909635,104840.0,104830.0,0.00025578]
[1738326441085,0.95169635,104840.0,104830.0,0.00025578]
[1738326442666,0.98995899,104840.0,104830.0,0.00025578]
[1738326444098,1.03717246,104840.0,104830.0,0.00025578]
[1738326444464,0.98995899,104840.0,104830.0,0.00025578]
[1738326447862,0.9096426,104840.0,104830.0,0.00025578]
[1738326448275,0.98995899,104840.0,104830.0,0.00025578]
[1738326448694,0.9096426,104840.0,104830.0,0.00025578]
[1738326453923,0.82932621,104840.0,104830.0,0.00025578]
[1738326454541,0.89957703,104840.0,104830.0,0.00025578]
[1738326455060,0.82932621,104840.0,104830.0,0.00025578]
[1738326463653,0.80632621,104840.0,104830.0,0.00025578]
[1738326466042,0.79550421,104840.0,104830.0,0.00025578]
[1738326471289,0.09550421,104840.0,104830.0,0.00025578]
[1738326471502,0.7964628,104840.0,104830.0,0.00025578]
[1738326471716,0.79550421,104840.0,104830.0,0.00025578]
[1738326472335,0.85265605,104840.0,104830.0,0.00025578]
[1738326472695,0.79550421,104840.0,104830.0,0.00025578]
[1738326478513,0.80214421,104840.0,104830.0,0.00025578]
[1738326482282,0.79550421,104840.0,104830.0,0.00025578]
[1738326482492,0.80214421,104840.0,104830.0,0.00025578]
[1738326484466,0.80214421,104840.0,104820.0,0.18087664]
[1738326484669,0.09724316,104830.0,104820.0,0.10056025]
[1738326484887,0.79724316,104830.0,104820.0,0.10056025]
[1738326485301,0.82024316,104830.0,104820.0,0.18087664]
[1738326485511,0.82024316,104830.0,104820.0,0.33087664]
[1738326485773,0.79724316,104830.0,104820.0,0.33187664]
[1738326486194,0.09724316,104830.0,104820.0,0.33187664]
[1738326486401,0.09724316,104830.0,104820.0,0.44219303]
[1738326486808,0.09724316,104830.0,104820.0,0.3797333]
[1738326487453,0.09724316,104830.0,104820.0,0.46004969]
[1738326487650,0.09724316,104830.0,104820.0,0.45904969]
[1738326487855,0.09724316,104830.0,104820.0,0.46004969]
[1738326488484,0.09724316,104830.0,104820.0,0.78904969]
[1738326493634,0.09724316,104830.0,104820.0,0.6787333]
[1738326493876,0.12024316,104830.0,104820.0,0.11941691]